[Event "*** Titled Tuesday Blitz"]
[Site "Chess.com"]
[Date "2020.04.21"]
[Round "6"]
[White "yoolund"]
[Black "elisak43"]
[Result "1-0"]
[WhiteElo "2552"]
[BlackElo "2389"]
[TimeControl "180+1"]
[EndTime "11:09:33 PDT"]
[Termination "yoolund won by resignation"]

1. d4 {[%clk 0:03:00.9]} 1... Nf6 {[%clk 0:03:00.9]} 2. Bg5 {[%clk 0:02:59.5]}
2... e6 {[%clk 0:03:01.7]} 3. e4 {[%clk 0:02:59.2]} 3... h6 {[%clk 0:03:00.8]}
4. Bxf6 {[%clk 0:02:58.9]} 4... Qxf6 {[%clk 0:03:01.7]} 5. c3 {[%clk 0:02:59.8]}
5... d5 {[%clk 0:03:01.7]} 6. Nd2 {[%clk 0:02:58.3]} 6... c6 {[%clk 0:02:51.8]}
7. Bd3 {[%clk 0:02:56.8]} 7... g6 {[%clk 0:02:47.8]} 8. Ne2 {[%clk 0:02:55.2]}
8... Bg7 {[%clk 0:02:47.6]} 9. O-O {[%clk 0:02:55]} 9... O-O {[%clk 0:02:46.4]}
10. f4 {[%clk 0:02:54.3]} 10... Nd7 {[%clk 0:02:44.3]} 11. e5 {[%clk 0:02:48.7]}
11... Qe7 {[%clk 0:02:43.7]} 12. g4 {[%clk 0:02:48.9]} 12... Qh4 {[%clk
0:01:58.1]} 13. Ng3 {[%clk 0:02:44.1]} 13... c5 {[%clk 0:01:52.9]} 14. Kg2
{[%clk 0:02:09.3]} 14... cxd4 {[%clk 0:01:43.8]} 15. cxd4 {[%clk 0:02:00.1]}
15... f5 {[%clk 0:01:36.6]} 16. h3 {[%clk 0:01:45.1]} 16... Kh8 {[%clk
0:01:21.8]} 17. Nf3 {[%clk 0:01:42]} 17... Qe7 {[%clk 0:01:21.5]} 18. g5 {[%clk
0:01:38.9]} 18... h5 {[%clk 0:01:02.7]} 19. Nh4 {[%clk 0:01:37]} 19... Qe8
{[%clk 0:00:25.4]} 20. Nxh5 {[%clk 0:01:34.6]} 20... gxh5 {[%clk 0:00:13.6]} 21.
g6 {[%clk 0:01:34.1]} 21... Bh6 {[%clk 0:00:14.1]} 22. Qxh5 {[%clk 0:01:23.3]}
22... Kg7 {[%clk 0:00:14.2]} 23. Bxf5 {[%clk 0:01:08.6]} 23... exf5 {[%clk
0:00:13.6]} 24. Nxf5+ {[%clk 0:01:09.5]} 24... Rxf5 {[%clk 0:00:08.7]} 25. Qxf5
{[%clk 0:01:10.4]} 25... Qxg6+ {[%clk 0:00:08.7]} 26. Qxg6+ {[%clk 0:01:10.6]}
26... Kxg6 {[%clk 0:00:09.6]} 27. f5+ {[%clk 0:01:11.5]} 27... Kg7 {[%clk
0:00:08.4]} 28. Rae1 {[%clk 0:01:08.9]} 28... Nf8 {[%clk 0:00:07]} 29. e6 {[%clk
0:01:06.4]} 29... Bg5 {[%clk 0:00:04.9]} 30. e7 {[%clk 0:00:59.6]} 30... Bxe7
{[%clk 0:00:05]} 31. Rxe7+ {[%clk 0:01:00]} 31... Kf6 {[%clk 0:00:05.9]} 32. Re5
{[%clk 0:00:41.6]} 32... Bd7 {[%clk 0:00:05.1]} 33. Rc1 {[%clk 0:00:35.2]} 33...
Re8 {[%clk 0:00:04.1]} 34. Rxe8 {[%clk 0:00:27]} 34... Bxe8 {[%clk 0:00:05]} 35.
Rc8 {[%clk 0:00:26.7]} 35... Kf7 {[%clk 0:00:04.5]} 36. Kg3 {[%clk 0:00:25.2]}
36... Bc6 {[%clk 0:00:04.1]} 37. Kf4 {[%clk 0:00:22.8]} 37... Nd7 {[%clk
0:00:05]} 38. h4 {[%clk 0:00:22.7]} 38... Nf6 {[%clk 0:00:05]} 39. Rc7+ {[%clk
0:00:18.7]} 39... Kg8 {[%clk 0:00:04]} 40. Ke5 {[%clk 0:00:16.2]} 40... Ng4+
{[%clk 0:00:04.2]} 41. Ke6 {[%clk 0:00:16.1]} 41... a6 {[%clk 0:00:04.8]} 42. f6
{[%clk 0:00:16]} 42... Nh6 {[%clk 0:00:04.5]} 43. Rc8+ {[%clk 0:00:10.1]} 43...
Kh7 {[%clk 0:00:04.1]} 44. Rc7+ {[%clk 0:00:09.8]} 44... Kg6 {[%clk 0:00:03.8]}
45. Rg7+ {[%clk 0:00:09.1]} 45... Kh5 {[%clk 0:00:04.1]} 46. Rh7 {[%clk
0:00:05.6]} 46... Kg6 {[%clk 0:00:03.8]} 47. Rxh6+ {[%clk 0:00:04.5]} 47... Kxh6
{[%clk 0:00:04.3]} 48. f7 {[%clk 0:00:05.4]} 48... Kg7 {[%clk 0:00:02.4]} 49.
Ke7 {[%clk 0:00:04.7]} 49... Kg6 {[%clk 0:00:03.3]} 50. f8=Q {[%clk 0:00:05.6]}
1-0

[Event "*** Titled Tuesday Blitz"]
[Site "Chess.com"]
[Date "2020.04.21"]
[Round "6"]
[White "evgenyermolaev"]
[Black "Algeriano22"]
[Result "1-0"]
[WhiteElo "2496"]
[BlackElo "2615"]
[TimeControl "180+1"]
[EndTime "11:09:36 PDT"]
[Termination "evgenyermolaev won by resignation"]

1. e4 {[%clk 0:03:00.9]} 1... e5 {[%clk 0:02:59.4]} 2. Nf3 {[%clk 0:03:00.5]}
2... d6 {[%clk 0:02:59.9]} 3. d4 {[%clk 0:02:59.2]} 3... exd4 {[%clk 0:02:59.8]}
4. Nxd4 {[%clk 0:03:00.1]} 4... Nf6 {[%clk 0:03:00]} 5. Nc3 {[%clk 0:03:00.2]}
5... Be7 {[%clk 0:03:00.5]} 6. Be3 {[%clk 0:02:50.9]} 6... O-O {[%clk
0:02:59.1]} 7. Qd2 {[%clk 0:02:50.4]} 7... d5 {[%clk 0:02:58.7]} 8. exd5 {[%clk
0:02:26.7]} 8... Nxd5 {[%clk 0:02:57.6]} 9. Nxd5 {[%clk 0:02:14.7]} 9... Qxd5
{[%clk 0:02:56.2]} 10. Nb5 {[%clk 0:02:14.8]} 10... Qc6 {[%clk 0:02:34.4]} 11.
Nxa7 {[%clk 0:02:02.4]} 11... Qf6 {[%clk 0:02:26.7]} 12. Nxc8 {[%clk 0:01:53.7]}
12... Rxc8 {[%clk 0:02:26]} 13. c3 {[%clk 0:01:47.8]} 13... Rd8 {[%clk
0:02:13.1]} 14. Qc2 {[%clk 0:01:46.5]} 14... Qc6 {[%clk 0:02:01.7]} 15. Bd3
{[%clk 0:01:44.2]} 15... Qxg2 {[%clk 0:01:56.4]} 16. Bxh7+ {[%clk 0:01:41.8]}
16... Kh8 {[%clk 0:01:55.8]} 17. Be4 {[%clk 0:01:42.2]} 17... Qg4 {[%clk
0:01:52.2]} 18. Bxb7 {[%clk 0:01:32.4]} 18... Ra5 {[%clk 0:01:51]} 19. Qe4
{[%clk 0:01:14.9]} 19... Qd7 {[%clk 0:01:28.1]} 20. O-O {[%clk 0:01:02.8]} 20...
c6 {[%clk 0:01:24.6]} 21. Rad1 {[%clk 0:00:58.1]} 21... Rd5 {[%clk 0:01:16.7]}
22. Rxd5 {[%clk 0:00:50.8]} 22... cxd5 {[%clk 0:01:15.2]} 23. Bxd5 {[%clk
0:00:51]} 23... Qxd5 {[%clk 0:01:15.7]} 24. Qxe7 {[%clk 0:00:50.8]} 24... Nc6
{[%clk 0:01:16.4]} 25. Qh4+ {[%clk 0:00:46.8]} 25... Kg8 {[%clk 0:01:16.9]} 26.
c4 {[%clk 0:00:34.1]} 26... Qd7 {[%clk 0:01:04.1]} 27. Qf4 {[%clk 0:00:16.7]}
27... Re8 {[%clk 0:01:02]} 28. Kg2 {[%clk 0:00:11.8]} 28... Ne5 {[%clk 0:01:01]}
29. Bd4 {[%clk 0:00:07.6]} 29... Qc6+ {[%clk 0:00:55.1]} 30. f3 {[%clk
0:00:07.6]} 30... Ng6 {[%clk 0:00:55.4]} 31. Qg3 {[%clk 0:00:06.3]} 31... Qxc4
{[%clk 0:00:54.2]} 32. Bc3 {[%clk 0:00:06]} 32... Qxa2 {[%clk 0:00:48.8]} 33. h4
{[%clk 0:00:05.7]} 33... Qd5 {[%clk 0:00:47.4]} 34. Rf2 {[%clk 0:00:05.1]} 34...
Re3 {[%clk 0:00:43.2]} 35. Qg5 {[%clk 0:00:04.3]} 35... Qe6 {[%clk 0:00:33.2]}
36. h5 {[%clk 0:00:04.1]} 36... Ne5 {[%clk 0:00:33.7]} 37. Qxe3 {[%clk
0:00:03.1]} 37... f6 {[%clk 0:00:23.1]} 38. Bxe5 {[%clk 0:00:03]} 38... fxe5
{[%clk 0:00:23.3]} 39. Re2 {[%clk 0:00:03.9]} 39... e4 {[%clk 0:00:19.1]} 40.
Qxe4 {[%clk 0:00:04.3]} 40... Qf6 {[%clk 0:00:19.7]} 41. Kf2 {[%clk 0:00:04.5]}
41... Qb6+ {[%clk 0:00:19.1]} 42. Qe3 {[%clk 0:00:04.3]} 42... Qf6 {[%clk
0:00:18.5]} 43. Qe6+ {[%clk 0:00:04.3]} 43... Qxe6 {[%clk 0:00:16.8]} 44. Rxe6
{[%clk 0:00:05.2]} 44... Kf7 {[%clk 0:00:17.7]} 45. Rc6 {[%clk 0:00:05.5]} 45...
g5 {[%clk 0:00:04.9]} 46. hxg6+ {[%clk 0:00:05.3]} 46... Kg7 {[%clk 0:00:04.9]}
47. b4 {[%clk 0:00:05.7]} 47... Kg8 {[%clk 0:00:04.7]} 48. Rc7 {[%clk
0:00:05.6]} 1-0

[Event "*** Titled Tuesday Blitz"]
[Site "Chess.com"]
[Date "2020.04.21"]
[Round "6"]
[White "Piotrek1979"]
[Black "woodhy"]
[Result "1-0"]
[WhiteElo "2444"]
[BlackElo "2279"]
[TimeControl "180+1"]
[EndTime "11:09:36 PDT"]
[Termination "Piotrek1979 won by checkmate"]

1. Nf3 {[%clk 0:03:00.9]} 1... e6 {[%clk 0:02:59.8]} 2. g3 {[%clk 0:03:01.8]}
2... b6 {[%clk 0:03:00.1]} 3. Bg2 {[%clk 0:03:02.7]} 3... Bb7 {[%clk 0:03:01]}
4. O-O {[%clk 0:03:03.6]} 4... Nf6 {[%clk 0:03:01.4]} 5. d3 {[%clk 0:03:02.8]}
5... c6 {[%clk 0:03:01.6]} 6. e4 {[%clk 0:03:02.4]} 6... d6 {[%clk 0:03:01.5]}
7. e5 {[%clk 0:02:55.9]} 7... dxe5 {[%clk 0:03:00.8]} 8. Nxe5 {[%clk 0:02:56.8]}
8... Nfd7 {[%clk 0:03:01]} 9. Nc4 {[%clk 0:02:37.2]} 9... Be7 {[%clk 0:02:53.5]}
10. Bf4 {[%clk 0:02:31.8]} 10... O-O {[%clk 0:02:50.8]} 11. Nc3 {[%clk
0:02:24.4]} 11... Na6 {[%clk 0:02:45]} 12. Re1 {[%clk 0:01:53.3]} 12... Nb4
{[%clk 0:02:43.6]} 13. Ne4 {[%clk 0:01:47]} 13... Nd5 {[%clk 0:02:43.3]} 14. Bd6
{[%clk 0:01:47.1]} 14... Ba6 {[%clk 0:02:41.2]} 15. Qh5 {[%clk 0:01:45.2]} 15...
N7f6 {[%clk 0:02:19.3]} 16. Qh4 {[%clk 0:01:41.3]} 16... Bxc4 {[%clk 0:02:11.3]}
17. Bxe7 {[%clk 0:01:40.4]} 17... Qxe7 {[%clk 0:02:00.4]} 18. dxc4 {[%clk
0:01:40]} 18... Nb4 {[%clk 0:01:40.9]} 19. Nxf6+ {[%clk 0:01:38.4]} 19... Qxf6
{[%clk 0:01:38.9]} 20. Qxf6 {[%clk 0:01:37.8]} 20... gxf6 {[%clk 0:01:39.8]} 21.
Re2 {[%clk 0:01:38.3]} 21... Rac8 {[%clk 0:01:37.4]} 22. Rd1 {[%clk 0:01:33.2]}
22... Rfd8 {[%clk 0:01:28.9]} 23. Rxd8+ {[%clk 0:01:30.8]} 23... Rxd8 {[%clk
0:01:29.8]} 24. a3 {[%clk 0:01:21.5]} 24... Rd1+ {[%clk 0:01:27.4]} 25. Bf1
{[%clk 0:01:21.8]} 25... Na6 {[%clk 0:01:26.1]} 26. b4 {[%clk 0:01:13.3]} 26...
Nc7 {[%clk 0:01:24.6]} 27. Kg2 {[%clk 0:01:12.3]} 27... Kf8 {[%clk 0:01:24.3]}
28. Re3 {[%clk 0:01:10.2]} 28... Ke7 {[%clk 0:01:23.1]} 29. g4 {[%clk
0:01:03.8]} 29... Rd2 {[%clk 0:01:20.4]} 30. Bd3 {[%clk 0:01:03.4]} 30... h6
{[%clk 0:01:20.6]} 31. Rh3 {[%clk 0:01:03.1]} 31... e5 {[%clk 0:01:17.7]} 32.
Kf1 {[%clk 0:01:01.5]} 32... Rd1+ {[%clk 0:01:15.5]} 33. Ke2 {[%clk 0:01:01.6]}
33... Ra1 {[%clk 0:01:16.4]} 34. Bf5 {[%clk 0:00:58.5]} 34... Ne6 {[%clk
0:01:15.9]} 35. Bxe6 {[%clk 0:00:58.8]} 35... Kxe6 {[%clk 0:01:16.8]} 36. Rxh6
{[%clk 0:00:58.9]} 36... Rxa3 {[%clk 0:01:16.1]} 37. g5 {[%clk 0:00:58.6]} 37...
a5 {[%clk 0:01:15.8]} 38. Rxf6+ {[%clk 0:00:58.5]} 38... Ke7 {[%clk 0:01:13.7]}
39. Rxc6 {[%clk 0:00:58.3]} 39... axb4 {[%clk 0:01:10.3]} 40. Rxb6 {[%clk
0:00:58.6]} 40... Rc3 {[%clk 0:01:10.5]} 41. Rxb4 {[%clk 0:00:58]} 41... Rxc2+
{[%clk 0:01:10.7]} 42. Ke3 {[%clk 0:00:58.4]} 42... Rc3+ {[%clk 0:01:11]} 43.
Ke4 {[%clk 0:00:58]} 43... Rc2 {[%clk 0:01:11.4]} 44. Rb7+ {[%clk 0:00:53]}
44... Ke6 {[%clk 0:01:10.7]} 45. Rb6+ {[%clk 0:00:53.2]} 45... Ke7 {[%clk
0:01:10.7]} 46. Kxe5 {[%clk 0:00:53.6]} 46... Re2+ {[%clk 0:01:09.8]} 47. Kd5
{[%clk 0:00:52.2]} 47... Rxf2 {[%clk 0:01:10.1]} 48. h4 {[%clk 0:00:52.3]} 48...
Rf4 {[%clk 0:01:07.1]} 49. Rb7+ {[%clk 0:00:52.2]} 49... Ke8 {[%clk 0:01:06.6]}
50. h5 {[%clk 0:00:51.3]} 50... Rf5+ {[%clk 0:01:06.1]} 51. Kd6 {[%clk
0:00:51.7]} 51... Kf8 {[%clk 0:01:05.9]} 52. h6 {[%clk 0:00:45]} 52... Kg8
{[%clk 0:01:05.2]} 53. c5 {[%clk 0:00:34.2]} 53... Rxg5 {[%clk 0:01:05.1]} 54.
c6 {[%clk 0:00:34.6]} 54... Rg6+ {[%clk 0:01:04.5]} 55. Kd7 {[%clk 0:00:34.9]}
55... Rxh6 {[%clk 0:01:00.3]} 56. c7 {[%clk 0:00:35]} 56... Kg7 {[%clk
0:00:59.1]} 57. c8=Q {[%clk 0:00:34.6]} 57... Re6 {[%clk 0:01:00]} 58. Qc3+
{[%clk 0:00:34]} 58... Kg6 {[%clk 0:00:59]} 59. Qg3+ {[%clk 0:00:33.8]} 59...
Kf6 {[%clk 0:00:58.4]} 60. Qf4+ {[%clk 0:00:33.7]} 60... Kg6 {[%clk 0:00:58.3]}
61. Rb8 {[%clk 0:00:30.7]} 61... Kg7 {[%clk 0:00:53.2]} 62. Qg5+ {[%clk
0:00:28.8]} 62... Rg6 {[%clk 0:00:53.3]} 63. Qe5+ {[%clk 0:00:28.7]} 63... f6
{[%clk 0:00:49.3]} 64. Qe7+ {[%clk 0:00:23.3]} 64... Kh6 {[%clk 0:00:49.2]} 65.
Rh8+ {[%clk 0:00:23.4]} 65... Kg5 {[%clk 0:00:48.9]} 66. Qe3+ {[%clk 0:00:23.9]}
66... Kf5 {[%clk 0:00:49.1]} 67. Qf3+ {[%clk 0:00:24.1]} 67... Ke5 {[%clk
0:00:46.5]} 68. Re8+ {[%clk 0:00:24]} 68... Kd4 {[%clk 0:00:44.6]} 69. Re4+
{[%clk 0:00:23.9]} 69... Kc5 {[%clk 0:00:42.1]} 70. Qf5+ {[%clk 0:00:23]} 70...
Kb6 {[%clk 0:00:42.3]} 71. Rb4+ {[%clk 0:00:22.7]} 71... Ka6 {[%clk 0:00:41]}
72. Qb5+ {[%clk 0:00:22.5]} 72... Ka7 {[%clk 0:00:40.2]} 73. Ra4# {[%clk
0:00:22.6]} 1-0

[Event "*** Titled Tuesday Blitz"]
[Site "Chess.com"]
[Date "2020.04.21"]
[Round "6"]
[White "Witik"]
[Black "Cubitas"]
[Result "1-0"]
[WhiteElo "2701"]
[BlackElo "2508"]
[TimeControl "180+1"]
[EndTime "11:09:39 PDT"]
[Termination "Witik won by checkmate"]

1. d4 {[%clk 0:03:00.9]} 1... Nf6 {[%clk 0:02:59.4]} 2. c4 {[%clk 0:03:00.9]}
2... e6 {[%clk 0:02:59.6]} 3. Nf3 {[%clk 0:03:00.1]} 3... d5 {[%clk 0:02:59.4]}
4. Nc3 {[%clk 0:03:00.1]} 4... Bb4 {[%clk 0:02:58.8]} 5. cxd5 {[%clk 0:03:00.2]}
5... exd5 {[%clk 0:02:58.4]} 6. Bg5 {[%clk 0:03:00.2]} 6... h6 {[%clk
0:02:58.2]} 7. Bh4 {[%clk 0:02:59.6]} 7... Nbd7 {[%clk 0:02:58.5]} 8. e3 {[%clk
0:02:59.6]} 8... c5 {[%clk 0:02:54.7]} 9. Be2 {[%clk 0:02:40.9]} 9... Qa5 {[%clk
0:02:31.2]} 10. O-O {[%clk 0:02:35.4]} 10... Bxc3 {[%clk 0:02:24.6]} 11. bxc3
{[%clk 0:02:35.3]} 11... Ne4 {[%clk 0:02:14.4]} 12. c4 {[%clk 0:02:23.2]} 12...
Nc3 {[%clk 0:02:01.8]} 13. Qd2 {[%clk 0:02:14.6]} 13... Nxe2+ {[%clk 0:01:57.1]}
14. Qxe2 {[%clk 0:02:15.5]} 14... dxc4 {[%clk 0:01:43.4]} 15. Qxc4 {[%clk
0:02:14.8]} 15... O-O {[%clk 0:01:42.8]} 16. dxc5 {[%clk 0:02:08]} 16... b6
{[%clk 0:01:24.3]} 17. c6 {[%clk 0:01:47]} 17... Ba6 {[%clk 0:01:22.5]} 18. Qd4
{[%clk 0:01:45.3]} 18... Nc5 {[%clk 0:01:05.9]} 19. Rfd1 {[%clk 0:01:41.5]}
19... Rac8 {[%clk 0:01:00.5]} 20. Ne5 {[%clk 0:01:36.9]} 20... Be2 {[%clk
0:00:59.1]} 21. Rdc1 {[%clk 0:01:18.6]} 21... Bb5 {[%clk 0:00:51.7]} 22. Be7
{[%clk 0:01:16.8]} 22... Ne6 {[%clk 0:00:23.4]} 23. Qb2 {[%clk 0:01:03.3]} 23...
Rfe8 {[%clk 0:00:23]} 24. Bb4 {[%clk 0:01:01.9]} 24... Qa4 {[%clk 0:00:23.5]}
25. Qb3 {[%clk 0:00:40.7]} 25... Bxc6 {[%clk 0:00:23.2]} 26. Nxc6 {[%clk
0:00:40.4]} 26... Qxc6 {[%clk 0:00:10.2]} 27. Rxc6 {[%clk 0:00:39.7]} 27... Rxc6
{[%clk 0:00:11.1]} 28. h4 {[%clk 0:00:35.3]} 28... Rec8 {[%clk 0:00:12]} 29. Rd1
{[%clk 0:00:33.1]} 29... a5 {[%clk 0:00:12.9]} 30. Ba3 {[%clk 0:00:23.3]} 30...
Nc5 {[%clk 0:00:13.8]} 31. Bxc5 {[%clk 0:00:23]} 31... bxc5 {[%clk 0:00:13.8]}
32. Qc4 {[%clk 0:00:22.6]} 32... Rb6 {[%clk 0:00:13.7]} 33. Rd7 {[%clk
0:00:21.9]} 33... Rf6 {[%clk 0:00:13.9]} 34. Qd5 {[%clk 0:00:19.4]} 34... h5
{[%clk 0:00:13.8]} 35. Rd8+ {[%clk 0:00:19.1]} 35... Rxd8 {[%clk 0:00:13.6]} 36.
Qxd8+ {[%clk 0:00:20]} 36... Kh7 {[%clk 0:00:14]} 37. Qc8 {[%clk 0:00:20.1]}
37... Rb6 {[%clk 0:00:11.7]} 38. Qxc5 {[%clk 0:00:19.3]} 38... Rb1+ {[%clk
0:00:12.6]} 39. Kh2 {[%clk 0:00:19.1]} 39... g6 {[%clk 0:00:13.5]} 40. Qxa5
{[%clk 0:00:17.8]} 40... Rb2 {[%clk 0:00:14.2]} 41. Kg3 {[%clk 0:00:17.3]} 41...
Kh6 {[%clk 0:00:13.5]} 42. a4 {[%clk 0:00:14.7]} 42... Ra2 {[%clk 0:00:12.6]}
43. Qa8 {[%clk 0:00:13.1]} 43... Kg7 {[%clk 0:00:12.1]} 44. a5 {[%clk
0:00:13.1]} 44... f6 {[%clk 0:00:10.3]} 45. a6 {[%clk 0:00:13.3]} 45... g5
{[%clk 0:00:10.8]} 46. Qb7+ {[%clk 0:00:12.6]} 46... Kg6 {[%clk 0:00:10.7]} 47.
a7 {[%clk 0:00:13.5]} 47... g4 {[%clk 0:00:10.5]} 48. a8=Q {[%clk 0:00:13.1]}
48... Rxa8 {[%clk 0:00:11.4]} 49. Qxa8 {[%clk 0:00:13.3]} 49... Kf5 {[%clk
0:00:12.3]} 50. Qg8 {[%clk 0:00:12]} 50... Ke4 {[%clk 0:00:11.8]} 51. Qe6+
{[%clk 0:00:11.2]} 51... Kd3 {[%clk 0:00:12.7]} 52. Qxf6 {[%clk 0:00:11]} 52...
Ke2 {[%clk 0:00:13.6]} 53. e4 {[%clk 0:00:10.7]} 53... Kf1 {[%clk 0:00:14.5]}
54. e5 {[%clk 0:00:10.9]} 54... Kg1 {[%clk 0:00:15.4]} 55. e6 {[%clk 0:00:11]}
55... Kh1 {[%clk 0:00:16.3]} 56. e7 {[%clk 0:00:11]} 56... Kg1 {[%clk
0:00:17.2]} 57. e8=Q {[%clk 0:00:11.1]} 57... Kh1 {[%clk 0:00:18.1]} 58. Qe1#
{[%clk 0:00:10.6]} 1-0

[Event "*** Titled Tuesday Blitz"]
[Site "Chess.com"]
[Date "2020.04.21"]
[Round "6"]
[White "IsikCan"]
[Black "otrov-11"]
[Result "1-0"]
[WhiteElo "2628"]
[BlackElo "2362"]
[TimeControl "180+1"]
[EndTime "11:09:40 PDT"]
[Termination "IsikCan won on time"]

1. e4 {[%clk 0:03:00.9]} 1... e6 {[%clk 0:02:58.8]} 2. d4 {[%clk 0:02:58.7]}
2... d5 {[%clk 0:02:59.1]} 3. Nd2 {[%clk 0:02:58.1]} 3... c5 {[%clk 0:02:58.6]}
4. exd5 {[%clk 0:02:47.8]} 4... Qxd5 {[%clk 0:02:59.5]} 5. Ngf3 {[%clk
0:02:48.1]} 5... cxd4 {[%clk 0:02:59.7]} 6. Bc4 {[%clk 0:02:47.7]} 6... Qd6
{[%clk 0:02:59.8]} 7. O-O {[%clk 0:02:47.3]} 7... Nf6 {[%clk 0:03:00.2]} 8. Nb3
{[%clk 0:02:46]} 8... Nc6 {[%clk 0:03:00.5]} 9. Nbxd4 {[%clk 0:02:44.1]} 9...
Nxd4 {[%clk 0:03:01.4]} 10. Nxd4 {[%clk 0:02:45]} 10... Qc7 {[%clk 0:03:01.6]}
11. Bb3 {[%clk 0:02:44.8]} 11... Bd7 {[%clk 0:02:56.5]} 12. Re1 {[%clk
0:02:44.1]} 12... Bc5 {[%clk 0:02:55.8]} 13. c3 {[%clk 0:01:54.3]} 13... O-O-O
{[%clk 0:02:55.6]} 14. Qe2 {[%clk 0:01:29.7]} 14... e5 {[%clk 0:02:27.6]} 15.
Nf3 {[%clk 0:01:09]} 15... Bg4 {[%clk 0:02:14.7]} 16. Qxe5 {[%clk 0:01:01.4]}
16... Bd6 {[%clk 0:02:05.1]} 17. Qg5 {[%clk 0:00:59.1]} 17... h6 {[%clk
0:01:47.1]} 18. Qb5 {[%clk 0:00:52.5]} 18... a6 {[%clk 0:01:26.3]} 19. Qc4
{[%clk 0:00:51.2]} 19... Bxf3 {[%clk 0:01:26.5]} 20. Qxc7+ {[%clk 0:00:50.5]}
20... Bxc7 {[%clk 0:01:27.4]} 21. gxf3 {[%clk 0:00:51.4]} 21... Nd5 {[%clk
0:01:21.5]} 22. Be3 {[%clk 0:00:47.7]} 22... Nf4 {[%clk 0:01:18.8]} 23. Rad1
{[%clk 0:00:46]} 23... f6 {[%clk 0:01:01.9]} 24. Bd4 {[%clk 0:00:36.2]} 24...
Rhe8 {[%clk 0:00:49.6]} 25. Bf7 {[%clk 0:00:35.9]} 25... Rxe1+ {[%clk
0:00:28.5]} 26. Rxe1 {[%clk 0:00:36.8]} 26... Be5 {[%clk 0:00:28.7]} 27. Be3
{[%clk 0:00:31.8]} 27... Nd3 {[%clk 0:00:27.3]} 28. Rb1 {[%clk 0:00:30.6]} 28...
Kc7 {[%clk 0:00:24]} 29. Bg6 {[%clk 0:00:29.5]} 29... Nf4 {[%clk 0:00:21.6]} 30.
Be4 {[%clk 0:00:30.1]} 30... g6 {[%clk 0:00:19.7]} 31. h4 {[%clk 0:00:28.6]}
31... f5 {[%clk 0:00:19.9]} 32. Bc2 {[%clk 0:00:29.1]} 32... Nd5 {[%clk
0:00:15.1]} 33. Bxh6 {[%clk 0:00:28.7]} 33... Bf6 {[%clk 0:00:15.2]} 34. Bg5
{[%clk 0:00:27.4]} 34... Bxg5 {[%clk 0:00:14.5]} 35. hxg5 {[%clk 0:00:28.3]}
35... Nf4 {[%clk 0:00:13.8]} 36. Rd1 {[%clk 0:00:28.6]} 36... Rh8 {[%clk
0:00:11.9]} 37. Re1 {[%clk 0:00:18.9]} 37... Rh5 {[%clk 0:00:10.3]} 38. Re7+
{[%clk 0:00:11.3]} 38... Kc6 {[%clk 0:00:10.5]} 39. Rg7 {[%clk 0:00:11.5]} 39...
Rxg5+ {[%clk 0:00:10.2]} 40. Kf1 {[%clk 0:00:12]} 40... Nh3 {[%clk 0:00:08.4]}
41. Ke2 {[%clk 0:00:11]} 41... Nf4+ {[%clk 0:00:07.9]} 42. Ke3 {[%clk
0:00:11.3]} 42... Nd5+ {[%clk 0:00:07.5]} 43. Kd2 {[%clk 0:00:10.9]} 43... Rg2
{[%clk 0:00:06.8]} 44. Ke2 {[%clk 0:00:10.9]} 44... Nf4+ {[%clk 0:00:06.3]} 45.
Ke3 {[%clk 0:00:11.3]} 45... Nd5+ {[%clk 0:00:06.5]} 46. Kd4 {[%clk 0:00:11.3]}
46... Nf4 {[%clk 0:00:03]} 47. Ke5 {[%clk 0:00:08.8]} 1-0